Cogmind - Beta 9.6 @@@ ROGUE MODE // 2020.07.16 @ 19:03:42 Player: Lyft Result: Self-destructed Performance ------------- Evolutions (1) 500 Regions Visited (3) 600 Robots Destroyed (37) 185 Value Destroyed (726) 726 Prototype IDs (0) 0 Alien Tech Used (0) 0 Bonus (35) 35 TOTAL SCORE: 2046 Bonus ------- Follower Combat Kills 35 Cogmind --------- Core Integrity 107/400 Matter 300/300 Energy 250/250 System Corruption 0% Temperature Cool (0) Movement Rolling (140) Ox6 Location -9/Materials Parts ------- > --- POWER (1) -------- Ion Engine > --- PROPULSION (3) --- Makeshift Leg Wheel Wheel > --- UTILITY (3) ------ High-capacity Storage Unit High-capacity Storage Unit Power Shielding > --- WEAPON (2) ------- (None) > --- INVENTORY (20) --- Ion Engine Ion Engine Ion Engine Ion Engine Light Ion Engine Light Nuclear Core Heat Sink Improved Heat Sink Hacking Suite Grenade Launcher Welding Torch Mining Claw Peak State ------------ > --- POWER ------------ Light Ion Engine > --- PROPULSION ------- Carbon-fiber Leg Makeshift Leg Wheel > --- UTILITY ---------- High-capacity Storage Unit High-capacity Storage Unit Weapon Shielding > --- WEAPON ----------- Particle Gun Particle Gun > --- INVENTORY -------- Ion Engine Ion Engine Ion Engine Ion Engine Ion Engine Light Ion Engine Light Nuclear Core Wheel Heat Sink Improved Heat Sink Power Shielding Hacking Suite Light Assault Rifle Grenade Launcher Welding Torch Mining Claw [Rating: 18] Favorites ----------- Power Ion Engine Engine Ion Engine Propulsion Light Treads Treads Light Treads Leg Makeshift Leg Wheel Wheel Utility High-capacity Storage Unit Storage High-capacity Storage Unit Protection Weapon Shielding Weapon Small Laser Energy Gun Small Laser Ballistic Gun Light Assault Rifle Launcher Grenade Launcher Special Weapon Welding Torch Build | -11 -10 -10 -9 ------- Run | Scr Mat Min Mat Slots Evolved 2 | . . . 2 Power . | . . . . Propulsion 1 | . . . 1 Utility 1 | . . . 1 Weapon . | . . . . Parts Attached 36 | 4 5 10 17 Power 2 | . . 1 1 Engine 2 | . . 1 1 Core . | . . . . Reactor . | . . . . Propulsion 9 | 2 1 1 5 Treads 2 | 1 1 . . Leg 2 | . . . 2 Wheel 5 | 1 . 1 3 Hover . | . . . . Flight . | . . . . Utility 6 | 1 3 . 2 Device . | . . . . Storage 4 | 1 3 . . Processor . | . . . . Hackware . | . . . . Protection 2 | . . . 2 Artifact . | . . . . Weapon 19 | 1 1 8 9 Energy Gun 11 | 1 1 4 5 Energy Cannon . | . . . . Ballistic Gun 2 | . . 1 1 Ballistic Cannon . | . . . . Launcher 5 | . . 3 2 Special Weapon 1 | . . . 1 Impact Weapon . | . . . . Slashing Weapon . | . . . . Piercing Weapon . | . . . . Special Melee Weapon . | . . . . Unidentified Prototypes . | . . . . Parts Lost 9 | . . 1 8 Power . | . . . . Propulsion 4 | . . 1 3 Utility 1 | . . . 1 Weapon 4 | . . . 4 Highest Loss Streak 3 | . . 1 3 Average Slot Usage (%) 95 | . 97 96 87 Engine 13 | . 14 14 11 Treads 22 | . 27 24 3 Wheel 2 | . . . 19 Storage 27 | . 28 28 22 Protection 1 | . . . 8 Energy Gun 23 | . 26 24 11 Ballistic Gun 2 | . . 2 7 Naked Turns . | . . . . Heaviest Build 74 | 16 72 73 74 Greatest Support 40 | 20 40 40 26 Greatest Overweight (x) 7 | 1 1 6 7 Average Overweight (x) 1 | . . 1 3 Largest Inventory Capacity 20 | 8 20 20 20 Average Capacity 19 | 6 18 20 20 Most Carried 20 | 6 7 13 20 Average Carried 7 | 4 5 8 12 Final Capacity 20 | 8 20 20 20 Final Carried 12 | 4 7 11 12 Class Distribution -------------------- 91% | Hauler-Mutant 5% | Mutant 3% | Scavenger-Mutant Dominant Class ---------------- Hauler-Mutant | -10/Materials Hauler-Mutant | -10/Mines Hauler-Mutant | -9/Materials Resources | -11 -10 -10 -9 ----------- Run | Scr Mat Min Mat Matter Collected 646 | 240 40 165 201 Remotely . | . . . . Salvage Created 1193 | 100 476 239 378 Parts 69 | 2 28 16 23 Haulers Intercepted 2 | . 1 . 1 Recyclers Shooed 2 | 1 . 1 . Parts Field Recycled . | . . . . Retrieved Matter . | . . . . Parts Self-Destructed . | . . . . Prevented . | . . . . Kills | -11 -10 -10 -9 ------- Run | Scr Mat Min Mat Combat Hostiles Destroyed 21 | . 5 10 6 Guns 12 | . 5 2 5 AOE 8 | . . 8 . Classes Destroyed 8 | 1 4 3 . Worker 2 | . . 1 1 Tunneler 1 | . . 1 . Hauler 2 | . 1 . 1 Recycler 5 | 1 1 2 1 Operator 3 | . 1 . 2 Watcher 3 | . 3 . . Swarmer 9 | . . 9 . Grunt 12 | . 5 1 6 Best Kill Streak 10 | 1 4 10 4 Combat Bots Only 6 | . 2 6 3 Max Kills in Single Turn 3 | 1 1 3 1 Gunslinging . | . . . . Exploded 2 | . . 2 . Melee . | . . . . Uniques/NPCs Destroyed . | . . . . Combat | -11 -10 -10 -9 -------- Run | Scr Mat Min Mat Damage Taken 1433 | . 227 296 910 Core 389 | . 34 62 293 Absorbed by Shields . | . . . . Core Remaining (%) 80 | 100 . 61 . Volleys Fired 92 | 2 25 18 47 Largest 2 | 2 2 2 2 Hottest 130 | 80 80 80 130 Shots Fired 150 | 4 42 30 74 Gun 140 | 4 42 22 72 Cannon . | . . . . Launcher 10 | . . 8 2 Special . | . . . . Kinetic 33 | . . 1 32 Thermal 64 | 2 17 18 27 Explosive 10 | . . 8 2 Electromagnetic 43 | 2 25 3 13 Robot Hit Streak 9 | 3 8 9 7 Robot Miss Streak 3 | . 2 3 3 Penetration Max . | . . . . Secondary Targets 3 | . 2 . 1 Max Gunslinging Chain 1 | . 1 . 1 Shots Hit Robots 96 | 3 28 19 46 Core Hits 54 | 1 17 18 18 Critical Hits . | . . . . Critical Kills . | . . . . Critical Parts Destroyed . | . . . . Melee Attacks . | . . . . Impact . | . . . . Slashing . | . . . . Piercing . | . . . . Sneak Attacks . | . . . . Combat Hostiles . | . . . . Follow-up Attacks . | . . . . Damage Inflicted 2018 | 38 493 872 615 Guns 1182 | 38 441 158 545 Cannons . | . . . . Explosions 825 | . 52 714 59 Melee . | . . . . Ramming 11 | . . . 11 Kinetic 190 | . . 8 182 Thermal 549 | 11 154 135 249 Explosive 773 | . . 714 59 Electromagnetic 495 | 27 339 15 114 Impact . | . . . . Slashing . | . . . . Piercing . | . . . . Highest Corruption . | . . . . Average Corruption . | . . . . Corruption Purged . | . . . . Overload Shots . | . . . . Overflow Damage 60 | . . 60 . Projectiles . | . . . . Explosions 60 | . . 60 . Melee . | . . . . Knockbacks . | . . . . Impact . | . . . . Kinetic . | . . . . Secondary . | . . . . Self-Inflicted Damage 143 | . 38 100 5 Shots 5 | . 1 4 . Rammed 1 | . . . 1 Targets Rammed 1 | . . . 1 Kicked . | . . . . Crushed . | . . . . Highest Temperature 549 | 36 145 96 549 Average Temperature 103 | 20 70 28 152 Received Heat Transfer 573 | . 105 24 444 Effects 9 | . . . 9 Shutdowns 2 | . . . 2 Energy Bleed 1 | . . . 1 Interference 3 | . . . 3 Matter Decay 1 | . . . 1 Short Circuit 1 | . . . 1 Damage (core) 1 | . . . 1 Siege Activations . | . . . . Robots Corrupted . | . . . . Combat Hostiles . | . . . . Parts Fried . | . . . . Impact Corruptions . | . . . . Robots Melted 1 | . . . 1 Combat Hostiles 1 | . . . 1 Parts Melted 3 | . 1 1 1 Heat Transferred 1180 | 25 275 300 580 Parts Sabotaged . | . . . . Parts Stolen . | . . . . Parts Stripped . | . . . . Power Chain Reactions 1 | . 1 . . Missiles Intercepted . | . . . . Alert | -11 -10 -10 -9 ------- Run | Scr Mat Min Mat Peak Influence 203 | 5 152 203 142 Average Influence 93 | 2 82 104 83 Maximum Alert Level 1 | . . 1 . Low Security (%) 80 | 100 100 63 100 Level 1 19 | . . 36 . Level 2 . | . . . . Level 3 . | . . . . Level 4 . | . . . . Level 5 . | . . . . High Security . | . . . . Max Security . | . . . . Squads Dispatched 6 | . 1 . 5 Investigation 1 | . . . 1 Extermination . | . . . . Reinforcement 5 | . 1 . 4 Assault . | . . . . Garrison . | . . . . Intercept . | . . . . Construction Impeded . | . . . . Haulers Reinforced . | . . . . Stealth | -11 -10 -10 -9 --------- Run | Scr Mat Min Mat Distress Signals 1 | . 1 . . Communications Jammed . | . . . . Distress Signals . | . . . . Times Spotted 36 | . 11 9 16 Peak Tracking Total 4 | . 4 3 4 Tactical Retreats . | . . . . Traps | -11 -10 -10 -9 ------- Run | Scr Mat Min Mat Traps Triggered 1 | . . . 1 Indirectly . | . . . . Trap Hack Attempts . | . . . . Triggered . | . . . . Disarmed . | . . . . Reprogrammed . | . . . . Reused . | . . . . Traps Extracted . | . . . . Installed . | . . . . Triggered . | . . . . Machines | -11 -10 -10 -9 ---------- Run | Scr Mat Min Mat Machines Disabled 5 | . 1 3 1 Max in Single Turn 2 | . 1 2 1 Machines Sabotaged . | . . . . Garrisons Compromised . | . . . . Overloaded Fab Kills . | . . . . Fab Network Shutdowns . | . . . . Hacking | -11 -10 -10 -9 --------- Run | Scr Mat Min Mat Machines Accessed 3 | . 3 . . Terminals 3 | . 3 . . Fabricators . | . . . . Repair Stations . | . . . . Recycling Units . | . . . . Scanalyzers . | . . . . Garrison Access . | . . . . Total Hacks 11 | . 11 . . Successful 9 | . 9 . . Failed 2 | . 2 . . Catastrophic . | . . . . Database Lockouts . | . . . . Manual 9 | . 9 . . Terminals 11 | . 11 . . Fabricators . | . . . . Repair Stations . | . . . . Recycling Units . | . . . . Scanalyzers . | . . . . Garrison Access . | . . . . Terminal Hacks 2 | . 2 . . Alert Level 1 | . 1 . . Locate Traps 1 | . 1 . . Fabricator Hacks . | . . . . Repair Station Hacks . | . . . . Recycling Unit Hacks . | . . . . Scanalyzer . | . . . . Garrison Access Hacks . | . . . . Unauthorized Hacks 7 | . 7 . . Terminals 7 | . 7 . . Track 2 | . 2 . . Assimilate 1 | . 1 . . Botnet 2 | . 2 . . Operators 2 | . 2 . . Fabricators . | . . . . Repair Stations . | . . . . Recycling Units . | . . . . Scanalyzers . | . . . . Garrison Access . | . . . . Data Cores Recovered . | . . . . Used . | . . . . Hacking Detections 3 | . 3 . . Full Trace Events . | . . . . Feedback Events . | . . . . Feedback Blocked . | . . . . Robot Schematics Acquired . | . . . . Robots Built . | . . . . Matter . | . . . . Time . | . . . . Total Robot Build Rating . | . . . . Part Schematics Acquired . | . . . . Parts Built . | . . . . Matter . | . . . . Time . | . . . . Total Part Build Rating . | . . . . Parts Repaired . | . . . . Time . | . . . . Parts Recycled . | . . . . Recycled Matter . | . . . . Retrieved Matter . | . . . . Retrieved Components . | . . . . Parts Scanalyzed . | . . . . Part Schematics Acquired . | . . . . Parts Damaged . | . . . . Bothacking | -11 -10 -10 -9 ------------ Run | Scr Mat Min Mat Used RIF Installer . | . . . . Robots Hacked . | . . . . Non-combat . | . . . . Combat . | . . . . Robot Hacks Applied . | . . . . Relay Couplers Released . | . . . . Robots Rewired . | . . . . Allies Hacked . | . . . . Hacks Repelled . | . . . . Allies | -11 -10 -10 -9 -------- Run | Scr Mat Min Mat Total Allies 3 | . 1 2 . Largest Group 2 | . 1 2 1 Highest-Rated Group 42 | . 10 42 11 Highest-Rated Ally 31 | . 10 31 11 Total Orders 2 | . 2 . . GOTO 1 | . 1 . . FOLLOW 1 | . 1 . . Ally Attacks 13 | . . 13 . Total Damage 194 | . . 194 . Kills 1 | . . 1 . Allies Corrupted . | . . . . Allies Melted . | . . . . Intel | -11 -10 -10 -9 ------- Run | Scr Mat Min Mat Robot Analysis Total . | . . . . Derelict Logs Recovered 2 | . . 2 . Drone Launches . | . . . . Drone Recoveries . | . . . . Exploration | -11 -10 -10 -9 ------------- Run | Scr Mat Min Mat Turns Passed 1777 | 16 591 920 250 Spaces Moved 795 | 5 279 447 64 Core . | . . . . Treads 704 | . 261 443 . Legs 1 | 1 . . . Wheels 90 | 4 18 4 64 Hover . | . . . . Flight . | . . . . Fastest Speed 90 | 90 90 140 110 Average Speed 176 | 96 173 187 124 Slowest Speed 220 | 120 180 220 150 Overloaded Moves . | . . . . Propulsion Burnouts . | . . . . Robots Hopped . | . . . . Cave-ins Triggered . | . . . . Exploration Rate (%) 39 | 3 56 90 7 Regions Visited 3 Branch Regions 1 Pre-discovered Areas 1 | . . 1 . Known Exits Taken . | . . . . Unknown Exits Taken 3 | 1 1 1 . Scrap Searched 2 | . . 2 . Spaces Dug 17 | . . 17 . Terrain Destroyed 76 | . 8 55 13 Melee . | . . . . Projectile . | . . . . AOE 76 | . 8 55 13 Actions | -11 -10 -10 -9 --------- Run | Scr Mat Min Mat Total 1023 | 12 346 498 167 Wait 66 | . 30 17 19 Move 792 | 4 278 446 64 Hop . | . . . . Pick Up 23 | . 4 5 14 Fast Attach 1 | 1 . . . Attach 19 | 2 1 3 13 Detach 1 | . . 1 . Swap 16 | 1 4 7 4 Drop 12 | 2 4 1 5 Fire 92 | 2 25 18 47 Melee . | . . . . Ram 1 | . . . 1 Kick . | . . . . Crush . | . . . . Escape Stasis . | . . . . Rewire . | . . . . Trap . | . . . . Miscellaneous . | . . . . Route ------- -11/Scrapyard -10/Materials (discovered 3 exits: [*Mat x2] / [*Min]) -10/Mines (discovered 2 exits: [*Mat x2]) -9/Materials History --------- Turn | Location | Event 1 | -11/Scrapyard | Discovered new exit (range 3) 17 | -11/Scrapyard | Entered Materials 106 | -10/Materials | Discovered new exit (range 10) 233 | -10/Materials | Discovered new exit (range 16) 410 | -10/Materials | Build established: Hauler-Mutant 563 | -10/Materials | Discovered new exit (range 15) 608 | -10/Materials | Entered Mines 640 | -10/Mines | Met a Derelict bent on vengeance 648 | -10/Mines | Discovered new exit (range 7) 809 | -10/Mines | Assembled infested the area 813 | -10/Mines | Learned Materials emergency access door positions 836 | -10/Mines | Learned location of Zion (-7) 854 | -10/Mines | Discovered new exit (range 5) 1528 | -10/Mines | Entered Materials 1528 | -9/Materials | Accompanied by 1 ally 1528 | -9/Materials | Evolved 2 slots: Propulsion x1, Utility x1 1649 | -9/Materials | Lost 3 parts (1n2w) 1756 | -9/Materials | Lost 3 parts (2n1u) 1764 | -9/Materials | Core integrity fell below 50% 1778 | -9/Materials | Self-destructed Last Messages --------------- 01733_ K-01 Serf collects debris. 01734_ Power failure, Lgt. Ion Engine shutdown. 01734_ Overheating: System interference. 01734_ Particle Gun temporarily disabled. 01735_ Dropped Broken Carbon-fiber Leg. 01737_ Dropped Lgt. Ion Engine. 01737_ K-01 Serf collects debris. 01749_ Acquired 31 matter. 01749_ Triggered Alarm Trap. 01749_ An alarm sounds. 01749_ ALERT: Alarm triggered, dispatching investigation squad. 01750_ K-01 Serf collects debris. 01759_ A-02 Transporter destroyed. 01761_ K-01 Serf collects debris. 01770_ Particle Gun destroyed. 01774_ K-01 Serf collects debris. 01777_ Lgt. Assault Rifle destroyed. 01777_ Slammed into G-34 Mercenary. 01777_ K-01 Serf collects debris. 01778_ Acquired 36 matter. Map ----- +----------------------------------------------------+ | ?????????????????#### ## ###????????????????? | | ?????????????????# ??????????????? | | ?????????????????# T ?????????????? | | ?????????????????# ?????????????? | | ???????????????######+## # #????????????????? | | ???????????????# ##??????????????????? | | ???????????????# """ ## #??????????????????? | | ???????????????# """ #????????????????????????? | | ???????????????# """ #????????????????????????? | | ???????????????# #????????????????????????? | | ???????????????# #????????????????????????? | | ???????????????# #????????????????????????? | | ???????????????# " *% #????????????????????????? | | ???????????????# % #???????#????????????????? | | ??????????????##### =%###?????? #????????????????? | | ??????????????# """ !%!#???? #????????????????? | | ??????????????# """""!*=#### ##???????????????? | | ??????????????# """""=%=# #####???????????? | | ??????????????# """""=[%+% !!= ??????????? | | ??????????????# """ %=[# !! ??????????? | | ??????????????# *=### [% !! ??????????? | | ??????????????# #??? ?????????? | | ??????????????# %*#?? ?????????? | | ??????????????#########k### ????????? | | ??????????????????????# =]g ????????? | | ??????????????????????# ]@g ! ????????? | | ??????????????????????#Y[]t w o #T#????????????? | | ?????????????????????+ #######+###??????????????? | | ?????????????????????####????????????????????????? | | ?????????????????????????????????????????????????? | | ?????????????????????????????????????????????????? | | ?????????????????????????????????????????????????? | | ?????????????????????????????????????????????????? | | ?????????????????????????????????????????????????? | | ?????????????????????????????????????????????????? | | ?????????????????????????????????????????????????? | | ?????????????????????????????????????????????????? | | ?????????????????????????????????????????????????? | | ?????????????????????????????????????????????????? | | ?????????????????????????????????????????????????? | | ?????????????????????????????????????????????????? | | ?????????????????????????????????????????????????? | | ?????????????????????????????????????????????????? | | ?????????????????????????????????????????????????? | | ?????????????????????????????????????????????????? | | ?????????????????????????????????????????????????? | | ?????????????????????????????????????????????????? | | ?????????????????????????????????????????????????? | | ???????????????????????????????????+?????????????? | | ?????????????????????????????????????????????????? | +----------------------------------------------------+ Best States ------------- Heat Dissipation 28 Energy Generation 10 Energy Capacity 250 Matter Stores 300 Matter Capacity 300 Sight Range 16 Terrain Scan Density 10 Power Shielding 33 Weapon Shielding 33 Evasion (%) 42 Recoil Reduction 2 Item Schematics ----------------- None Robot Schematics ------------------ None Fabricated ------------ Nothing Alien Tech Used ----------------- None Achievements -------------- It's Just You Challenges ------------ None Game ------ Seed ImprinterOverloadJammer Manual? 0 Play Time 00:15:21 Cumulative 16.7 hours Start 2020.07.16 @ 18:49:20 End 2020.07.16 @ 19:03:42 Sessions 1 Manual Loads 0 Difficulty Rogue Special Mode None Game No. 38 Rogue 36 Adventurer 1 Explorer 1 Win Type - Total 0 Types 0/0/0/0/0/0/0 Lore% 23 Gallery% 28 Achievement% 20 Wizard Run 0 Options --------- ASCII 0 Keyboard 0 Movement Mouse Keybinds 0 Fullscreen 2 Font 24/Terminus Map View 76x50 Tactical HUD 1 Map Filters NONE Filters NONE Steam 1 RUN: b6004748-e3e9-43f6-90cf-a620dce145e6